Cogmind - Beta 17.1 @@@ ROGUE MODE // 2026.09.04 @ 18:41:57 Player: Bsuter Result: Destroyed by G-67 Veteran with Field Laser Performance ------------- Evolutions (5) 2500 Regions Visited (16) 3200 Robots Destroyed (185) 925 Value Destroyed (6025) 6025 Prototype IDs (42) 840 Alien Tech Used (0) 0 Bonus (1513) 1513 TOTAL SCORE: 15003 Bonus ------- High Alert Combat Kills 18 Follower Combat Kills 471 Aligned with FarCom 300 Met Warlord at Base 500 MAIN.C Attacked Warlord 500 Friendly Fire -276 Cogmind --------- Core Integrity 0/1000 Matter 297/300 Energy 87/100 System Corruption 7% Temperature Warm (194) Movement Core (50) Location -4/Proximity Caves Parts ------- > --- POWER (2) -------- (None) > --- PROPULSION (5) --- (None) > --- UTILITY (6) ------ Improved Hacking Suite Makeshift System Shield Makeshift System Shield > --- WEAPON (4) ------- (None) > --- INVENTORY (5) ---- Improved Deuterium Engine Light Antimatter Reactor Cesium-ion Thruster Propulsion Shielding Segregator Peak State ------------ > --- POWER ------------ Neutrino Core Neutrino Core > --- PROPULSION ------- Improved Medium Treads Carbon-fiber Leg Carbon-fiber Leg Flexi-carbon Leg Enhanced Armored Leg > --- UTILITY ---------- Advanced Heat Sink Large Storage Unit Triangulator Advanced Signal Interpreter Hardened Medium Armor Plating Improved Hacking Suite > --- WEAPON ----------- Beamcaster Beamcaster Beamcaster Scythe > --- INVENTORY -------- Neutrino Core Neutrino Core Coolant Injector Medium Storage Unit Large Storage Unit Core Analyzer Jamming Amplifier Hacking Suite Heavy Assault Rifle Heavy Battle Rifle Heavy Battle Rifle KE Penetrator Heavy Missile Launcher Improved Plasma Cutter [Rating: 82] Favorites ----------- Power Neutrino Core Engine Angular Momentum Engine Power Core Neutrino Core Reactor Antimatter Reactor Propulsion Carbon-fiber Leg Treads Improved Medium Treads Leg Carbon-fiber Leg Wheel Wheel Hover Unit Backup Propulsion III Flight Unit Cesium-ion Thruster Utility Large Storage Unit Device Improved Cooling System Storage Large Storage Unit Processor Advanced Signal Interpreter Hackware Improved Hacking Suite Protection Hardened Medium Armor Plating Weapon Beamcaster Energy Gun Beamcaster Energy Cannon EM Pulse Cannon Ballistic Gun Heavy Assault Rifle Ballistic Cannon Heavy Flak Cannon Launcher Mini Grenade Launcher Special Weapon Mining Laser Impact Weapon Maul Slashing Weapon Scythe Piercing Weapon Vortex Lance Build | -11 -10 -10 -9 -9 -9 -8 -8 -7 -6 -5 -5 -5 -5 -5 -5 -4 ------- Run | Yrd Mat Min Mat Min Exi Min Mat Fac Fac Fac Was Fac Upp Upp War Pro Slots Evolved 10 | . . . 2 . . . 2 2 2 2 . . . . . . Power 1 | . . . . . . . . 1 . . . . . . . . Propulsion 3 | . . . 2 . . . . . . 1 . . . . . . Utility 4 | . . . . . . . 1 1 1 1 . . . . . . Weapon 2 | . . . . . . . 1 . 1 . . . . . . . Parts Attached 158 | . 4 4 25 7 . . 13 20 23 19 4 7 12 3 15 2 Power 34 | . 1 1 5 . . . 1 8 9 2 . 2 2 1 . 2 Engine 14 | . 1 1 1 . . . . 5 4 1 . . . . . 1 Core 17 | . . . 4 . . . 1 3 2 1 . 2 2 1 . 1 Reactor 3 | . . . . . . . . . 3 . . . . . . . Propulsion 47 | . . 1 7 2 . . 2 5 7 8 . 1 5 1 8 . Treads 3 | . . . . . . . . . . 2 . . 1 . . . Leg 31 | . . . 4 2 . . 2 5 7 5 . . 3 1 2 . Wheel 7 | . . 1 3 . . . . . . 1 . 1 1 . . . Hover . | . . . . . . . . . . . . . . . . . Flight 6 | . . . . . . . . . . . . . . . 6 . Utility 24 | . 1 . 3 . . . 3 3 3 4 . 2 1 . 4 . Device 5 | . . . . . . . 1 2 . 1 . 1 . . . . Storage 6 | . . . 3 . . . . . . 1 . 1 . . 1 . Processor 4 | . 1 . . . . . 2 . 1 . . . . . . . Hackware 6 | . . . . . . . . 1 2 . . . . . 3 . Protection 3 | . . . . . . . . . . 2 . . 1 . . . Artifact . | . . . . . . . . . . . . . . . . . Weapon 53 | . 2 2 10 5 . . 7 4 4 5 4 2 4 1 3 . Energy Gun 21 | . . . 2 1 . . 5 3 2 2 2 1 2 . 1 . Energy Cannon 3 | . . . 3 . . . . . . . . . . . . . Ballistic Gun 18 | . 1 2 4 2 . . 1 1 1 3 2 1 . . . . Ballistic Cannon 1 | . . . . . . . . . 1 . . . . . . . Launcher 3 | . . . . 1 . . . . . . . . 1 . 1 . Special Weapon 2 | . . . 1 . . . . . . . . . . 1 . . Impact Weapon 1 | . . . . 1 . . . . . . . . . . . . Slashing Weapon 3 | . 1 . . . . . 1 . . . . . 1 . . . Piercing Weapon 1 | . . . . . . . . . . . . . . . 1 . Special Melee Weapon . | . . . . . . . . . . . . . . . . . Unidentified Prototypes 11 | . . . 2 . . . 1 4 . 1 . . . . 3 . Parts Lost 77 | . . 1 5 2 . . 2 . 4 21 2 . 9 19 . 12 Power 12 | . . . 1 . . . 1 . 1 2 . . 1 3 . 3 Propulsion 34 | . . 1 3 1 . . 1 . 2 9 1 . 5 5 . 6 Utility 10 | . . . . . . . . . . 4 . . 1 3 . 2 Weapon 21 | . . . 1 1 . . . . 1 6 1 . 2 8 . 1 Highest Loss Streak 8 | . . 1 3 1 . . 1 . 2 8 2 . 3 7 . 8 To Critical Strikes 3 | . . . . . . . 1 . . 2 . . . . . . Average Backups 12 | . 7 8 8 14 15 15 14 14 14 11 13 14 14 9 5 8 Power 1 | . 1 1 1 3 3 3 2 . . . 1 1 1 1 1 1 Propulsion 1 | . 3 1 . 1 2 2 2 2 3 . 1 1 . . . 1 Utility 5 | . . . . 3 3 3 3 6 8 8 7 6 6 5 2 3 Weapon 4 | . 3 5 6 6 7 7 6 4 2 3 4 5 5 2 2 2 Tool/Special . | . . . . . . . . . . . . . . . . . Unused Backups 22 | . 2 . 4 . . . 2 2 . . . 3 . 2 . 7 Power 5 | . 2 . 1 . . . . . . . . 1 . . . 1 Propulsion 1 | . . . . . . . . . . . . . . . . 1 Utility 10 | . . . 1 . . . . 2 . . . 1 . 2 . 4 Weapon 6 | . . . 2 . . . 2 . . . . 1 . . . 1 Tool/Special . | . . . . . . . . . . . . . . . . . Average Slot Usage (%) 89 | . 99 99 81 94 100 100 98 99 99 91 92 92 84 59 58 67 Engine 5 | . 14 14 . 11 11 11 5 5 5 8 5 3 . . 9 2 Core 4 | . . . 9 . . . 3 9 2 . 5 7 10 8 . . Leg 22 | . 28 16 14 39 44 44 36 30 25 20 23 20 10 7 . . Wheel 1 | . . 10 12 . . . . . . . . . 3 . . . Device 6 | . . . . . . . 7 4 6 8 17 17 11 3 . . Storage 6 | . 14 14 11 11 11 11 9 7 6 5 5 5 5 4 3 5 Processor 7 | . 13 14 11 11 11 11 9 9 6 5 5 5 5 5 5 4 Hackware 6 | . . . . . . . . 6 12 6 5 5 5 5 19 22 Energy Gun 10 | . . . 7 . . . 14 14 18 11 8 11 13 5 8 4 Ballistic Gun 8 | . 27 26 11 13 11 15 10 6 5 7 11 11 5 6 . . Peak Build Rating 82 | . 7 7 15 16 17 17 33 50 70 75 75 78 82 79 61 50 Average Rating 46 | . 6 6 11 14 16 17 26 40 63 66 69 74 71 49 38 43 On Entrance 35 | 6 6 7 7 14 16 17 17 29 50 66 75 72 77 79 11 50 Avg Prop Armor Cover (%) 8 | . . 9 5 . . . . . . 11 . 15 7 8 10 . Naked Turns . | . . . . . . . . . . . . . . . . . Heaviest Build 78 | 10 12 11 32 34 32 34 41 51 74 78 55 70 78 76 18 17 Greatest Support 85 | 20 20 10 40 43 43 43 48 72 72 85 85 65 50 50 25 25 Greatest Overweight (x) 24 | . . 1 2 1 . . . . 1 3 . 6 24 19 2 . Average Overweight (x) . | . . 1 . . . . . . . . . 1 5 1 . . Largest Inventory Capacity 15 | . 8 8 15 15 15 15 15 15 15 15 15 15 15 15 10 10 Average Capacity 13 | . 8 8 8 15 15 15 15 15 15 15 15 15 15 13 8 9 Most Carried 15 | . 8 8 15 15 15 15 15 15 15 15 15 15 15 13 10 10 Average Carried 12 | . 7 7 8 14 14 15 14 14 14 12 13 14 14 9 6 8 Final Capacity 15 | 8 8 8 15 15 15 15 15 15 15 15 15 15 15 5 10 5 Final Carried 15 | 6 8 8 15 15 15 15 15 15 15 11 15 15 13 4 9 5 Class Distribution -------------------- 23% | Mutant 21% | Scavenger-Skirmisher 19% | Hacker-Skirmisher 11% | Skirmisher 7% | Scavenger-Mutant 4% | Scavenger-Tank 4% | Hacker-Mutant Dominant Class ---------------- Mutant | -10/Materials Mutant | -10/Mines Mutant | -9/Materials Mutant | -9/Mines Mutant | -9/Exiles Scavenger-Mutant | -8/Mines Scavenger-Skirmisher | -8/Materials Skirmisher | -7/Factory Hacker-Skirmisher | -6/Factory Scavenger-Skirmisher | -5/Factory Scavenger-Skirmisher | -5/Waste Scavenger-Skirmisher | -5/Factory Scavenger-Tank | -5/Upper Caves Mutant | -5/Upper Caves Hacker-Mutant | -5/Warlord Hacker-Sprinter | -4/Proximity Caves Resources | -11 -10 -10 -9 -9 -9 -8 -8 -7 -6 -5 -5 -5 -5 -5 -5 -4 ----------- Run | Yrd Mat Min Mat Min Exi Min Mat Fac Fac Fac Was Fac Upp Upp War Pro Matter Collected 4249 | 200 90 77 454 231 . . 259 407 775 627 52 187 455 262 150 23 Remotely . | . . . . . . . . . . . . . . . . . Salvage Created 7302 | . 194 87 1031 176 . . 620 810 1505 1049 . 422 728 630 . 50 Parts 341 | . 10 8 68 17 . . 34 35 60 42 . 23 27 17 . . Haulers Intercepted 7 | . 1 . 3 . . . 1 1 . . . 1 . . . . Recyclers Shooed 4 | . 1 . 1 . . . . 1 . 1 . . . . . . Parts Field Recycled . | . . . . . . . . . . . . . . . . . Retrieved Matter . | . . . . . . . . . . . . . . . . . Parts Self-Destructed 25 | . . . . . . . . . . . . . 10 15 . . Prevented . | . . . . . . . . . . . . . . . . . Parts Restored . | . . . . . . . . . . . . . . . . . Kills | -11 -10 -10 -9 -9 -9 -8 -8 -7 -6 -5 -5 -5 -5 -5 -5 -4 ------- Run | Yrd Mat Min Mat Min Exi Min Mat Fac Fac Fac Was Fac Upp Upp War Pro Combat Hostiles Destroyed 136 | . 3 6 18 11 . . 12 11 27 18 . 5 12 12 . 1 Melee 14 | . . . . . . . 3 . . 4 . . 1 6 . . Guns 86 | . 3 6 11 3 . . 9 11 20 8 . 5 7 3 . . Cannons 16 | . . . 7 . . . . . 6 2 . . . 1 . . AOE 18 | . . . . 7 . . . . . 4 . . 4 2 . 1 Classes Destroyed 17 | . 3 . 5 2 . . . 3 2 . . . 2 . . . Worker 11 | . . . 3 . . . 2 1 3 1 . 1 . . . . Builder 8 | . . . . . . . . 1 3 1 . 3 . . . . Tunneler 2 | . . . . 1 . . . . 1 . . . . . . . Hauler 7 | . 1 . 3 . . . 1 1 . . . 1 . . . . Recycler 10 | . 1 . 2 . . . . 2 2 3 . . . . . . Operator 2 | . . . 1 . . . . 1 . . . . . . . . Watcher 5 | . . . 1 . . . 1 . 3 . . . . . . . Swarmer 43 | . 3 6 9 8 . . 4 . 2 6 . 3 . 2 . . Grunt 44 | . . . 6 2 . . 4 3 12 3 . . 6 7 . 1 Brawler 3 | . . . . 1 . . 1 . 1 . . . . . . . Duelist 5 | . . . . . . . . . 1 . . . 3 1 . . Sentry 20 | . . . 3 . . . 3 3 6 1 . 2 . 2 . . Hunter 5 | . . . . . . . . 1 1 2 . . 1 . . . Programmer 13 | . . . . . . . . 4 3 6 . . . . . . Heavy 1 | . . . . . . . . . 1 . . . . . . . Wasp 1 | . . . . . . . . . . . . 1 . . . . Thug 1 | . . . . . . . . . . . . . 1 . . . Fireman 3 | . . . . . . . . . . . . . 3 . . . Mutant 1 | . . . . . . . . . . . . . 1 . . . Best Kill Streak 5 | . 3 3 5 3 . . 3 3 4 4 . 3 3 5 . 1 Combat Bots Only 5 | . 3 3 5 3 . . 3 2 3 4 . 3 3 5 . 1 Max Kills in Single Turn 4 | . 1 1 2 3 . . 1 2 2 4 . 2 2 2 . 1 Gunslinging 1 | . . . 1 . . . . . . . . 1 . . . . Exploded 4 | . . . . 3 . . . . . 4 . . 2 2 . 1 Melee 1 | . . . . . . . 1 . . 1 . . 1 1 . . Uniques/NPCs Destroyed . | . . . . . . . . . . . . . . . . . Combat | -11 -10 -10 -9 -9 -9 -8 -8 -7 -6 -5 -5 -5 -5 -5 -5 -4 -------- Run | Yrd Mat Min Mat Min Exi Min Mat Fac Fac Fac Was Fac Upp Upp War Pro Hostile Shots Fired 1058 | . 16 62 120 53 . . 46 123 162 176 2 19 83 151 . 45 Missed 310 | . 2 14 25 16 . . 12 51 57 47 1 6 27 33 . 19 Hits 748 | . 14 48 95 37 . . 34 72 105 129 1 13 56 118 . 26 Melee 10 | . . . . 5 . . 2 . 1 . 1 . . . . 1 Projectile 738 | . 14 48 95 32 . . 32 72 104 129 . 13 56 118 . 25 AOE 4 | . . . . 4 . . . . . . . . . . . . Critical Strikes 19 | . . . . . . . 3 . 4 5 . . 2 4 . 1 Part Disruptions 1 | . . . . . . . . . . . . . 1 . . . Damage Taken 11780 | . 126 377 1012 603 . . 431 672 1607 2388 51 293 1331 2323 40 526 Core 1613 | . 10 73 214 89 . . 52 57 112 144 . 25 95 618 40 84 Absorbed by Shields 15 | . . . . . . . . . 15 . . . . . . . Regen/Repaired (Parts) 139 | . . . . . . . . . . . 7 111 21 . . . Core Remaining (%) 76 | 100 . 66 . . . 24 90 91 86 . . . . . . . Volleys Fired 391 | . 35 26 74 23 . . 25 40 70 37 1 18 24 13 . 5 Largest 4 | . 2 2 2 2 . . 3 3 4 4 4 4 4 3 . 1 Hottest 264 | . 40 40 168 88 . . 161 167 264 258 216 222 264 147 . 45 Shots Fired 1041 | . 70 46 143 42 . . 71 117 239 129 3 71 75 30 . 5 Gun 957 | . 70 46 119 37 . . 71 117 215 116 3 71 63 24 . 5 Cannon 58 | . . . 21 . . . . . 24 13 . . . . . . Launcher 19 | . . . . 5 . . . . . . . . 12 2 . . Special 7 | . . . 3 . . . . . . . . . . 4 . . Kinetic 503 | . 70 46 73 27 . . 29 40 87 57 2 36 25 11 . . Thermal 500 | . . . 57 10 . . 42 77 152 71 1 35 38 17 . . Explosive 19 | . . . . 5 . . . . . . . . 12 2 . . Electromagnetic 14 | . . . 13 . . . . . . 1 . . . . . . Entropic 5 | . . . . . . . . . . . . . . . . 5 Robot Hit Streak 17 | . 11 3 17 9 . . 5 13 13 13 2 7 8 12 . 3 Robot Miss Streak 14 | . 4 8 6 6 . . 4 4 11 14 1 4 3 4 . 2 Penetration Max . | . . . . . . . . . . . . . . . . . Secondary Targets 12 | . 2 1 2 . . . 1 1 4 . . 1 . . . . Max Gunslinging Chain 1 | . 1 1 1 . . . 1 1 1 . . 1 . . . . Shots Hit Robots 737 | . 43 18 96 31 . . 43 80 169 103 2 37 58 54 . 3 Core Hits 533 | . 13 7 47 23 . . 21 50 193 88 . 29 39 21 . 2 Critical Kills . | . . . . . . . . . . . . . . . . . Critical Parts Destroyed 4 | . . . 1 . . . . . . 1 . . 1 . . 1 Critical Strikes 29 | . . . 1 . . . 2 3 6 3 . 1 9 3 . 1 Burn 16 | . . . . . . . 1 3 6 1 . 1 3 1 . . Destroy 3 | . . . 1 . . . . . . 1 . . 1 . . . Sever 9 | . . . . . . . 1 . . 1 . . 5 2 . . Detonate 1 | . . . . . . . . . . . . . . . . 1 Melee Attacks 104 | . 1 . . 2 . . 17 2 4 15 . . 23 40 . . Impact 2 | . . . . 2 . . . . . . . . . . . . Slashing 102 | . 1 . . . . . 17 2 4 15 . . 23 40 . . Piercing . | . . . . . . . . . . . . . . . . . Sneak Attacks 15 | . . . . . . . . . . . . . 12 3 . . Combat Hostiles . | . . . . . . . . . . . . . . . . . Follow-up Attacks . | . . . . . . . . . . . . . . . . . Damage Inflicted 17916 | . 344 224 1331 1000 . . 1052 1684 3897 2963 40 1048 2291 1704 . 338 Guns 11390 | . 344 224 965 406 . . 545 1653 3380 1614 40 1027 685 391 . 116 Cannons 987 | . . . 314 . . . . . 484 189 . . . . . . Explosions 2320 | . . . 52 499 . . . . . 495 . . 808 244 . 222 Melee 3073 | . . . . 82 . . 507 . . 665 . . 798 1021 . . Ramming 98 | . . . . 13 . . . 31 33 . . 21 . . . . Kinetic 5477 | . 344 224 587 284 . . 191 492 1492 792 40 548 278 205 . . Thermal 7411 | . . . 554 122 . . 354 1161 2372 1506 . 479 407 234 . 222 Explosive 1551 | . . . . 499 . . . . . . . . 808 244 . . Electromagnetic 190 | . . . 190 . . . . . . . . . . . . . Impact 82 | . . . . 82 . . . . . . . . . . . . Slashing 2991 | . . . . . . . 507 . . 665 . . 798 1021 . . Piercing . | . . . . . . . . . . . . . . . . . Entropic 116 | . . . . . . . . . . . . . . . . 116 Highest Corruption 11 | . . . . . . . . 6 1 8 8 11 11 11 11 7 Average Corruption 6 | . . . . . . . . 1 1 5 8 8 11 11 11 7 Corruption Purged . | . . . . . . . . . . . . . . . . . Corruption Blocked . | . . . . . . . . . . . . . . . . . Effects 178 | . . . . . . . . 9 11 23 11 31 63 27 2 1 Message Errors 37 | . . . . . . . . 1 4 6 3 8 9 6 . . Matter Fused 40 | . . . . . . . . 2 2 3 1 4 17 10 1 . Heat Flow Errors 20 | . . . . . . . . . . 4 1 2 10 2 . 1 Energy Discharges 24 | . . . . . . . . 4 1 3 1 5 5 4 1 . Parts Rejected 5 | . . . . . . . . . 1 1 . 1 1 1 . . Data Loss (minor) 28 | . . . . . . . . 1 2 2 4 6 10 3 . . Data Loss (major) 6 | . . . . . . . . . . 1 . 1 3 1 . . Misfires 7 | . . . . . . . . 1 1 1 . 3 1 . . . Alerts 4 | . . . . . . . . . . . . . 4 . . . Misdirections 1 | . . . . . . . . . . . . . 1 . . . Weapon Failures 6 | . . . . . . . . . . 2 1 1 2 . . . Overload Shots . | . . . . . . . . . . . . . . . . . Overflow Damage 324 | . . . 2 29 . . 69 . . 101 . . 23 81 . 19 Projectiles 2 | . . . 2 . . . . . . . . . . . . . Explosions 134 | . . . . 20 . . . . . 72 . . 23 . . 19 Melee 188 | . . . . 9 . . 69 . . 29 . . . 81 . . Knockbacks 12 | . . . . . . . . . 5 7 . . . . . . Impact . | . . . . . . . . . . . . . . . . . Kinetic 12 | . . . . . . . . . 5 7 . . . . . . Secondary . | . . . . . . . . . . . . . . . . . Self-Inflicted Damage 472 | . . . 23 27 . . . . . 103 . 4 207 108 . . Shots 12 | . . . 1 1 . . . . . 2 . . 6 2 . . Rammed 1 | . . . . . . . . . . . . 1 . . . . Targets Rammed 10 | . . . . 1 . . . 3 2 . . 4 . . . . Kicked 9 | . . . . 1 . . . 3 2 . . 3 . . . . Crushed . | . . . . . . . . . . . . . . . . . Highest Temperature 547 | . . . 375 240 . . 365 309 547 325 203 296 480 306 241 181 Average Temperature 122 | . . . 93 115 . . 125 96 168 106 75 83 147 134 121 52 Received Heat Transfer 2585 | . . . 249 66 . . 171 138 450 312 . 27 437 657 . 78 Effects 44 | . . . 4 2 . . 1 . 20 2 . . 15 . . . Shutdowns 8 | . . . . . . . . . 5 . . . 3 . . . Energy Bleed 7 | . . . 2 . . . 1 . 2 . . . 2 . . . Interference 26 | . . . 2 2 . . . . 12 2 . . 8 . . . Short Circuit 1 | . . . . . . . . . 1 . . . . . . . Damage (major) 2 | . . . . . . . . . . . . . 2 . . . Siege Activations . | . . . . . . . . . . . . . . . . . Martial Activations . | . . . . . . . . . . . . . . . . . Shielding Activations . | . . . . . . . . . . . . . . . . . Robots Disrupted . | . . . . . . . . . . . . . . . . . Combat Hostiles . | . . . . . . . . . . . . . . . . . Robots Corrupted 1 | . . . . 1 . . . . . . . . . . . . Combat Hostiles 1 | . . . . 1 . . . . . . . . . . . . Parts Fried 1 | . . . . 1 . . . . . . . . . . . . Impact Corruptions 1 | . . . . 1 . . . . . . . . . . . . Robots Melted 1 | . . . . . . . . . 1 . . . . . . . Combat Hostiles 1 | . . . . . . . . . 1 . . . . . . . Parts Melted 22 | . . . 1 . . . 1 10 3 3 . 2 2 . . . Heat Transferred 12156 | . . . 1095 296 . . 777 2294 3559 1580 . 888 999 518 . 150 Parts Sabotaged . | . . . . . . . . . . . . . . . . . Parts Stolen . | . . . . . . . . . . . . . . . . . Parts Stripped . | . . . . . . . . . . . . . . . . . Power Chain Reactions 1 | . . . 1 . . . . . . . . . . . . . Alert | -11 -10 -10 -9 -9 -9 -8 -8 -7 -6 -5 -5 -5 -5 -5 -5 -4 ------- Run | Yrd Mat Min Mat Min Exi Min Mat Fac Fac Fac Was Fac Upp Upp War Pro Maximum Alert Level 3 | . . . 1 . . . . . 1 1 . 3 . . . . Low Security (%) 81 | . 100 100 75 100 . 100 100 100 72 61 100 46 . . . . Level 1 15 | . . . 24 . . . . . 27 38 . 28 . . . . Level 2 1 | . . . . . . . . . . . . 18 . . . . Level 3 . | . . . . . . . . . . . . 6 . . . . Level 4 . | . . . . . . . . . . . . . . . . . Level 5 . | . . . . . . . . . . . . . . . . . High Security . | . . . . . . . . . . . . . . . . . Max Security . | . . . . . . . . . . . . . . . . . Peak Influence 736 | . 60 95 244 199 . . 172 98 379 302 79 736 . . . . Initial 185 | . . . 29 67 . . . 67 34 185 79 . . . . . Average 112 | . 6 50 165 127 . . 64 34 113 189 16 280 . . . . Influence Increases 5308 | . 83 155 564 366 . . 436 404 878 733 78 1076 170 300 . 65 Destroy 0b10 Robot/C 2860 | . 60 120 360 220 . . 240 220 540 360 . 340 140 240 . 20 Destroy 0b10 Robot/NC 235 | . 10 . 50 5 . . 20 30 60 25 . 35 . . . . Destroy Leader 644 | . 12 20 88 40 . . 54 82 146 80 . 92 30 . . . Allied During Kill 459 | . . . . . . . . . . . . 459 . . . . Successful Hack 137 | . . . . . . . 22 40 37 12 . 26 . . . . Disable Machine 165 | . . . 15 . . . 15 15 . 90 . 30 . . . . Destroy Structure 313 | . 1 . 6 41 . . 10 2 5 76 78 94 . . . . Partial Spotted 30 | . . . . . . . . . 30 . . . . . . . Lose Combat Pursuer 465 | . . 15 45 60 . . 75 15 60 90 . . . 60 . 45 Influence Decreases 5308 | . 82 81 464 478 63 . 286 484 569 886 304 474 738 295 39 65 Entered New Map 948 | . . 1 46 108 63 . . 83 36 194 147 . 224 7 39 . Time Decay 3648 | . 82 70 368 350 . . 266 401 503 482 137 304 452 183 . 50 Lost Part 532 | . . 10 50 20 . . 20 . 30 210 20 . 52 105 . 15 Lost Ally 180 | . . . . . . . . . . . . 170 10 . . . Squads Dispatched 29 | . . . . . . . 2 7 8 4 . 7 . 1 . . Investigation 1 | . . . . . . . . . 1 . . . . . . . Extermination 12 | . . . . . . . . 3 4 3 . 2 . . . . Reinforcement 10 | . . . . . . . 2 1 3 1 . 3 . . . . Assault 3 | . . . . . . . . . . . . 2 . 1 . . Garrison 3 | . . . . . . . . 3 . . . . . . . . Intercept . | . . . . . . . . . . . . . . . . . Searches Triggered . | . . . . . . . . . . . . . . . . . Construction Impeded 3 | . . . . . . . . . 1 . . 2 . . . . Haulers Reinforced . | . . . . . . . . . . . . . . . . . Active Scanning Responses . | . . . . . . . . . . . . . . . . . Cargo Convoy Interrupts . | . . . . . . . . . . . . . . . . . Stealth | -11 -10 -10 -9 -9 -9 -8 -8 -7 -6 -5 -5 -5 -5 -5 -5 -4 --------- Run | Yrd Mat Min Mat Min Exi Min Mat Fac Fac Fac Was Fac Upp Upp War Pro Distress Signals 16 | . . . 4 . . . 4 1 3 . . 3 . . 1 . Communications Jammed 24 | . . . . . . . 6 . . 18 . . . . . . Distress Signals 24 | . . . . . . . 6 . . 18 . . . . . . Times Spotted 258 | . 8 7 31 30 . . 24 18 41 35 6 11 12 18 10 7 Peak Tracking Total 17 | . 4 3 6 17 . . 5 3 4 7 4 6 4 7 10 4 Tactical Retreats 28 | . . 1 3 4 . . 3 1 3 5 2 . . 3 . 3 Traps | -11 -10 -10 -9 -9 -9 -8 -8 -7 -6 -5 -5 -5 -5 -5 -5 -4 ------- Run | Yrd Mat Min Mat Min Exi Min Mat Fac Fac Fac Was Fac Upp Upp War Pro Traps Triggered 13 | . . . . . . . . 1 7 2 . 2 . . 1 . Indirectly . | . . . . . . . . . . . . . . . . . Trap Hack Attempts . | . . . . . . . . . . . . . . . . . Triggered . | . . . . . . . . . . . . . . . . . Disarmed . | . . . . . . . . . . . . . . . . . Reprogrammed . | . . . . . . . . . . . . . . . . . Reused . | . . . . . . . . . . . . . . . . . Traps Extracted . | . . . . . . . . . . . . . . . . . Installed . | . . . . . . . . . . . . . . . . . Triggered . | . . . . . . . . . . . . . . . . . Machines | -11 -10 -10 -9 -9 -9 -8 -8 -7 -6 -5 -5 -5 -5 -5 -5 -4 ---------- Run | Yrd Mat Min Mat Min Exi Min Mat Fac Fac Fac Was Fac Upp Upp War Pro Machines Disabled 14 | . . . 1 . . . 1 1 . 6 . 2 2 1 . . Max in Single Turn 5 | . . . 1 . . . 1 1 . 5 . 1 1 1 . . Machines Repaired . | . . . . . . . . . . . . . . . . . Machines Dismantled . | . . . . . . . . . . . . . . . . . Machines Sabotaged . | . . . . . . . . . . . . . . . . . Overloaded Fab Kills . | . . . . . . . . . . . . . . . . . Hacking | -11 -10 -10 -9 -9 -9 -8 -8 -7 -6 -5 -5 -5 -5 -5 -5 -4 --------- Run | Yrd Mat Min Mat Min Exi Min Mat Fac Fac Fac Was Fac Upp Upp War Pro Machines Accessed 45 | . 4 . 1 . 1 . 5 7 9 4 . 9 . . 4 1 Terminals 33 | . 4 . . . . . 5 5 9 1 . 8 . . . 1 Fabricators 2 | . . . . . . . . . . 1 . 1 . . . . Repair Stations . | . . . . . . . . . . . . . . . . . Recycling Units . | . . . . . . . . . . . . . . . . . Scanalyzers 4 | . . . 1 . . . . 2 . 1 . . . . . . Garrison Access 1 | . . . . . . . . . . 1 . . . . . . Total Hacks 102 | . 6 . 4 . 1 . 10 17 24 7 . 21 . . 11 1 Successful 53 | . . . 3 . 1 . 4 9 14 2 . 8 . . 11 1 Failed 49 | . 6 . 1 . . . 6 8 10 5 . 13 . . . . Catastrophic 13 | . 1 . . . . . 1 3 4 1 . 3 . . . . Database Lockouts . | . . . . . . . . . . . . . . . . . Manual 69 | . 6 . . . 1 . 10 11 21 2 . 18 . . . . Terminals 76 | . 6 . . . . . 10 13 24 2 . 20 . . . 1 Fabricators 2 | . . . . . . . . . . 1 . 1 . . . . Repair Stations . | . . . . . . . . . . . . . . . . . Recycling Units . | . . . . . . . . . . . . . . . . . Scanalyzers 10 | . . . 4 . . . . 4 . 2 . . . . . . Garrison Access 2 | . . . . . . . . . . 2 . . . . . . Terminal Hacks 23 | . . . . . 1 . 1 3 5 . . 1 . . 11 1 Record 12 | . . . . . . . . 2 2 . . 1 . . 6 1 Robot Analysis 2 | . . . . . . . 1 . 1 . . . . . . . Prototype ID Bank 4 | . . . . . . . . . . . . . . . 4 . Open Door 1 | . . . . . . . . . . . . . . . 1 . Terminal Index 2 | . . . . . . . . 1 1 . . . . . . . Zone Layout 1 | . . . . . . . . . 1 . . . . . . . Proto ID Catalog 1 | . . . . . 1 . . . . . . . . . . . Fabricator Hacks 2 | . . . . . . . . . . 1 . 1 . . . . Network Status 2 | . . . . . . . . . . 1 . 1 . . . . Repair Station Hacks . | . . . . . . . . . . . . . . . . . Recycling Unit Hacks . | . . . . . . . . . . . . . . . . . Scanalyzer 5 | . . . 3 . . . . 2 . . . . . . . . Insert Component 2 | . . . 1 . . . . 1 . . . . . . . . Analyze 3 | . . . 2 . . . . 1 . . . . . . . . Garrison Access Hacks . | . . . . . . . . . . . . . . . . . Unauthorized Hacks 23 | . . . . . . . 3 4 9 1 . 6 . . . . Terminals 23 | . . . . . . . 3 4 9 1 . 6 . . . . Track 1 | . . . . . . . . . 1 . . . . . . . Botnet 22 | . . . . . . . 3 4 8 1 . 6 . . . . Fabricators . | . . . . . . . . . . . . . . . . . Repair Stations . | . . . . . . . . . . . . . . . . . Recycling Units . | . . . . . . . . . . . . . . . . . Scanalyzers . | . . . . . . . . . . . . . . . . . Garrison Access . | . . . . . . . . . . . . . . . . . Data Cores Recovered 1 | . . . 1 . . . . . . . . . . . . . Used . | . . . . . . . . . . . . . . . . . Hacking Detections 32 | . 3 . 1 . . . 4 6 8 3 . 7 . . . . Full Trace Events . | . . . . . . . . . . . . . . . . . Feedback Events . | . . . . . . . . . . . . . . . . . Feedback Blocked . | . . . . . . . . . . . . . . . . . Robot Schematics Acquired . | . . . . . . . . . . . . . . . . . Robots Built . | . . . . . . . . . . . . . . . . . Authchips . | . . . . . . . . . . . . . . . . . Time . | . . . . . . . . . . . . . . . . . Total Robot Build Rating . | . . . . . . . . . . . . . . . . . Part Schematics Acquired 2 | . . . 1 . . . . 1 . . . . . . . . Parts Built . | . . . . . . . . . . . . . . . . . Authchips . | . . . . . . . . . . . . . . . . . Time . | . . . . . . . . . . . . . . . . . Total Part Build Rating . | . . . . . . . . . . . . . . . . . Part Studies Acquired . | . . . . . . . . . . . . . . . . . Parts Repaired . | . . . . . . . . . . . . . . . . . Time . | . . . . . . . . . . . . . . . . . Parts Recycled . | . . . . . . . . . . . . . . . . . Recycled Matter . | . . . . . . . . . . . . . . . . . Retrieved Matter . | . . . . . . . . . . . . . . . . . Retrieved Components . | . . . . . . . . . . . . . . . . . Parts Scanalyzed 2 | . . . 1 . . . . 1 . . . . . . . . Part Schematics Acquired 2 | . . . 1 . . . . 1 . . . . . . . . Parts Damaged . | . . . . . . . . . . . . . . . . . Bothacking | -11 -10 -10 -9 -9 -9 -8 -8 -7 -6 -5 -5 -5 -5 -5 -5 -4 ------------ Run | Yrd Mat Min Mat Min Exi Min Mat Fac Fac Fac Was Fac Upp Upp War Pro Used RIF Installer . | . . . . . . . . . . . . . . . . . Robots Hacked . | . . . . . . . . . . . . . . . . . Non-combat . | . . . . . . . . . . . . . . . . . Combat . | . . . . . . . . . . . . . . . . . Robot Hacks Applied . | . . . . . . . . . . . . . . . . . Relay Couplers Released . | . . . . . . . . . . . . . . . . . Fabnet Peak Effective % . | . . . . . . . . . . . . . . . . . Robots Rewired . | . . . . . . . . . . . . . . . . . Allies Hacked 1 | . . . . . . . . . . . . 1 . . . . Hacks Repelled . | . . . . . . . . . . . . . . . . . Allies | -11 -10 -10 -9 -9 -9 -8 -8 -7 -6 -5 -5 -5 -5 -5 -5 -4 -------- Run | Yrd Mat Min Mat Min Exi Min Mat Fac Fac Fac Was Fac Upp Upp War Pro Total Allies 19 | . . . . . . . . . . . 19 . . . . . Largest Group 19 | . . . . . . . . . . . 19 15 1 . . . Highest-Rated Group 702 | . . . . . . . . . . . 702 602 27 . . . Highest-Rated Ally 50 | . . . . . . . . . . . 50 50 27 . . . Total Orders . | . . . . . . . . . . . . . . . . . Ally Attacks 176 | . . . . . . . . . . . 105 71 . . . . Total Damage 5460 | . . . . . . . . . . . 3712 1748 . . . . Kills 25 | . . . . . . . . . . . 10 15 . . . . Allies Corrupted 2 | . . . . . . . . . . . . 2 . . . . Allies Melted 2 | . . . . . . . . . . . . . . . 2 . Intel | -11 -10 -10 -9 -9 -9 -8 -8 -7 -6 -5 -5 -5 -5 -5 -5 -4 ------- Run | Yrd Mat Min Mat Min Exi Min Mat Fac Fac Fac Was Fac Upp Upp War Pro Active Infowar (turns) 4040 | . . . . . . . 779 . . 759 508 953 1041 . . . T.N.C. 81 | . . . . . . . 81 . . . . . . . . . Triangulation 2578 | . . . . . . . . . . 76 508 953 1041 . . . Jamming 3068 | . . . . . . . 698 . . 759 508 953 150 . . . Robot Analysis Total 2 | . . . . . . . 1 . 1 . . . . . . . Derelict Logs Recovered 9 | . . . . 2 . . . . . . . . 2 3 . 2 Drone Launches . | . . . . . . . . . . . . . . . . . Drone Recoveries . | . . . . . . . . . . . . . . . . . Exploration | -11 -10 -10 -9 -9 -9 -8 -8 -7 -6 -5 -5 -5 -5 -5 -5 -4 ------------- Run | Yrd Mat Min Mat Min Exi Min Mat Fac Fac Fac Was Fac Upp Upp War Pro Turns Passed 13790 | . 650 148 852 797 352 193 849 1607 2285 1251 508 953 1434 815 847 249 Spaces Moved 9239 | 1 454 73 522 485 293 160 554 1105 1362 631 406 619 644 380 889 661 Core 474 | . . . 6 . . . . . . . . . 10 174 284 . Treads 127 | . . . . . . . . . . 2 . . 5 120 . . Legs 6367 | 1 454 . 221 485 293 160 554 1105 1362 592 406 530 108 86 10 . Wheels 1015 | . . 73 295 . . . . . . 37 . 89 521 . . . Hover 505 | . . . . . . . . . . . . . . . 505 . Flight 751 | . . . . . . . . . . . . . . . 90 661 Fastest Speed 23 | 120 120 95 80 120 120 120 120 120 125 120 120 120 120 50 23 23 Average Speed 124 | 120 120 95 102 142 120 120 120 121 139 156 120 137 197 169 91 25 Slowest Speed 1250 | 120 120 95 190 190 120 120 120 127 195 320 120 190 1250 1000 190 35 Overloaded Moves . | . . . . . . . . . . . . . . . . . Propulsion Burnouts . | . . . . . . . . . . . . . . . . . Robots Hopped . | . . . . . . . . . . . . . . . . . Potential Cave-ins . | . . . . . . . . . . . . . . . . . Cave-ins Triggered . | . . . . . . . . . . . . . . . . . Exploration Rate (%) 53 | 2 64 19 60 76 62 61 47 27 38 22 96 25 67 73 92 84 Regions Visited 16 Branch Regions 8 Pre-discovered Areas 3 | . . . . 1 . . . . . . . . . 1 . 1 Known Exits Taken 4 | . . . . . . . 1 1 1 . . 1 . . . . Unknown Exits Taken 10 | 1 1 1 1 1 1 1 . . . . . . 1 1 1 . Scrap Searched 12 | . . . . 1 . 1 . . . . . . 4 4 . 2 Spaces Dug 15 | . 1 . . . . . 6 2 4 . . . 2 . . . Terrain Destroyed 286 | . 1 . 5 48 . . 6 2 4 52 . 2 123 26 . 17 Melee 14 | . 1 . . . . . 6 2 4 . . . 1 . . . Projectile 19 | . . . . . . . . . . 6 . 2 3 . . 8 AOE 253 | . . . 5 48 . . . . . 46 . . 119 26 . 9 Terrain Rammed . | . . . . . . . . . . . . . . . . . Walls Destroyed . | . . . . . . . . . . . . . . . . . Machines Disabled . | . . . . . . . . . . . . . . . . . Actions | -11 -10 -10 -9 -9 -9 -8 -8 -7 -6 -5 -5 -5 -5 -5 -5 -4 --------- Run | Yrd Mat Min Mat Min Exi Min Mat Fac Fac Fac Was Fac Upp Upp War Pro Total 10574 | . 501 109 705 543 294 160 669 1287 1587 785 422 683 709 461 920 739 Wait 433 | . 1 6 46 14 . . 35 73 86 62 10 24 . 12 . 64 Move 9224 | . 453 72 521 484 292 159 553 1104 1361 631 405 618 643 379 888 661 Hop . | . . . . . . . . . . . . . . . . . Pick Up 59 | . 4 . 14 3 1 . 8 7 6 3 2 3 1 1 4 2 Fast Attach 77 | . 1 . 13 1 . . 5 7 10 14 2 2 6 2 13 1 Attach 49 | . . 1 4 1 . . 2 4 7 13 . . 5 8 1 3 Detach 18 | . . . 2 . . . 2 3 . 2 . . 1 1 6 1 Swap 92 | . 3 3 10 9 . 1 10 15 19 7 2 5 6 1 1 . Drop 103 | . 3 1 21 3 1 . 12 24 15 1 . 9 . 4 7 2 Fire 391 | . 35 26 74 23 . . 25 40 70 37 1 18 24 13 . 5 Melee 104 | . 1 . . 2 . . 17 2 4 15 . . 23 40 . . Ram 1 | . . . . . . . . . . . . 1 . . . . Kick 9 | . . . . 1 . . . 3 2 . . 3 . . . . Crush . | . . . . . . . . . . . . . . . . . Escape Stasis 9 | . . . . . . . . 5 4 . . . . . . . Rewire 5 | . . . . 2 . . . . 3 . . . . . . . Trap . | . . . . . . . . . . . . . . . . . Miscellaneous . | . . . . . . . . . . . . . . . . . Route ------- -11/Scrapyard -10/Materials (discovered 3 exits: *Mat x2 / [*Min]) -10/Mines -9/Materials (discovered 3 exits: *Mat x2 / [*Min]) -9/Mines (discovered 3 exits: *Mat x2 / *Exi) -9/Exiles (discovered 2 exits: [*Min x2]) -8/Mines -8/Materials -7/Factory (discovered 2 exits: *Fac / *Sto) -6/Factory (discovered 3 exits: *Fac / *Low / *Ext) -5/Factory -5/Waste -5/Factory -5/Upper Caves -5/Upper Caves -5/Warlord -4/Proximity Caves History --------- Turn | Location | Event 1 | -11/Scrapyard | Discovered new exit (range 0) 1 | -11/Scrapyard | Entered Materials 132 | -10/Materials | Discovered new exit (range 3) 309 | -10/Materials | Build established: Mutant 309 | -10/Materials | Discovered new exit (range 10) 374 | -10/Materials | Discovered new exit (range 9) 651 | -10/Materials | Entered Mines 684 | -10/Mines | Met a Derelict bent on vengeance 717 | -10/Mines | Discovered new exit (range 7) 799 | -10/Mines | Entered Materials 799 | -9/Materials | Evolved 2 slots: Propulsion x2 933 | -9/Materials | Discovered new exit (range 10) 1088 | -9/Materials | Lost 3 parts (1p1n1w) 1280 | -9/Materials | Core integrity fell below 50% 1511 | -9/Materials | Discovered new exit (range 6) 1577 | -9/Materials | Discovered new exit (range 16) 1588 | -9/Materials | Build established: Scavenger-Mutant 1651 | -9/Materials | Entered Mines 1652 | -9/Mines | Assembled infested the area 1664 | -9/Mines | Met 8R-AWN 1837 | -9/Mines | Learned Materials garrison access intel 1949 | -9/Mines | Build established: Mutant 1984 | -9/Mines | Discovered new exit (range 9) 2060 | -9/Mines | Learned Materials stockpile data 2309 | -9/Mines | Discovered new exit (range 10) 2359 | -9/Mines | Learned location of Storage (-7) 2441 | -9/Mines | Discovered new exit (range 5) 2448 | -9/Mines | Entered Exiles 2466 | -9/Exiles | Discovered new exit (range 15) 2478 | -9/Exiles | Welcomed by 8R-AWN 2498 | -9/Exiles | Met EX-HEX 2536 | -9/Exiles | Met EX-BIN 2549 | -9/Exiles | Aligned with FarCom system 2550 | -9/Exiles | Given EX-Vault access code 2580 | -9/Exiles | Opened EX-Vault 2588 | -9/Exiles | Found Longsword +1 2611 | -9/Exiles | Warned to stay clear of 0b10 Research branches 2652 | -9/Exiles | Met EX-DEC 2696 | -9/Exiles | Learned about 8R-AWN's background 2784 | -9/Exiles | Discovered new exit (range 14) 2800 | -9/Exiles | Left Exiles lab with Longsword +1 2800 | -9/Exiles | Entered Mines 2972 | -8/Mines | Discovered new exit (range 15) 2993 | -8/Mines | Entered Materials 2993 | -8/Materials | Evolved 2 slots: Utility x1, Weapon x1 2995 | -8/Materials | Loaded intel: 1 garrison access location 3755 | -8/Materials | Build established: Scavenger-Skirmisher 3758 | -8/Materials | Discovered new exit (range 16) 3839 | -8/Materials | Identified exit to Factory 3842 | -8/Materials | Entered Factory 3842 | -7/Factory | Evolved 2 slots: Power x1, Utility x1 4418 | -7/Factory | Discovered new exit (range 15) 4435 | -7/Factory | Identified exit to Storage 4643 | -7/Factory | Garrison activated, responded to threat 4673 | -7/Factory | Build established: Skirmisher 5432 | -7/Factory | Discovered new exit (range 14) 5448 | -7/Factory | Identified exit to Factory 5449 | -7/Factory | Entered another Factory area 5449 | -6/Factory | Evolved 2 slots: Utility x1, Weapon x1 5752 | -6/Factory | Build established: Hacker-Skirmisher 6264 | -6/Factory | Discovered new exit (range 7) 6270 | -6/Factory | Identified exit to Lower Caves 6651 | -6/Factory | Discovered new exit (range 15) 6667 | -6/Factory | Identified exit to Extension 7707 | -6/Factory | Discovered new exit (range 14) 7728 | -6/Factory | Identified exit to Factory 7734 | -6/Factory | Entered another Factory area 7734 | -5/Factory | Evolved 2 slots: Propulsion x1, Utility x1 8097 | -5/Factory | Lost 3 parts (3n) 8173 | -5/Factory | Lost 4 parts (2n2u) 8917 | -5/Factory | Lost 8 parts (1p2n1u4w) 8941 | -5/Factory | Build established: Scavenger-Skirmisher 8985 | -5/Factory | Sucked down chute 8985 | -5/Factory | Entered Waste 9003 | -5/Waste | Spotted C-40 Crusher 9007 | -5/Waste | Spotted C-40 Crusher 9023 | -5/Waste | Crushed by Compactor (1 part destroyed, 1 dropped) 9029 | -5/Waste | Spotted C-40 Crusher 9031 | -5/Waste | Spotted C-40 Crusher 9032 | -5/Waste | Spotted C-40 Crusher 9098 | -5/Waste | Warlord forces began an assault 9102 | -5/Waste | Allies destroyed C-40 Crusher 9273 | -5/Waste | Allies destroyed C-40 Crusher 9292 | -5/Waste | Discovered new exit (range 12) 9427 | -5/Waste | Identified exit to Factory 9493 | -5/Waste | Entered Factory 9493 | -5/Factory | Accompanied by 15 allies 10325 | -5/Factory | System corruption reached 10% 10393 | -5/Factory | First assault squad dispatched 10422 | -5/Factory | Discovered new exit (range 5) 10429 | -5/Factory | Identified exit to Upper Caves 10446 | -5/Factory | Entered Upper Caves 10446 | -5/Upper Caves | Accompanied by 1 ally 10470 | -5/Upper Caves | Learned Factory emergency access door positions 10474 | -5/Upper Caves | Lost 9 allies 10552 | -5/Upper Caves | Ambushed by wild Derelicts 10632 | -5/Upper Caves | Lost 3 parts (2n1u) 10747 | -5/Upper Caves | Encountered a Warlord checkpoint 11083 | -5/Upper Caves | Found DCF Scrap (11 items) 11339 | -5/Upper Caves | Learned Factory emergency access door positions 11448 | -5/Upper Caves | Attacked by a delusional Derelict stockpiling Unaware 11492 | -5/Upper Caves | Lost 3 parts (1p1n1w) 11752 | -5/Upper Caves | Discovered new exit (range 7) 11880 | -5/Upper Caves | Entered another Upper Caves area 11942 | -5/Upper Caves | Build established: Scavenger-Tank 12091 | -5/Upper Caves | Attracted the attention of an 0b10 outpost 12146 | -5/Upper Caves | Lost 4 parts (1p2u1w) 12206 | -5/Upper Caves | Core integrity fell below 50% 12247 | -5/Upper Caves | Lost 7 parts (4n3w) 12490 | -5/Upper Caves | Build established: Mutant 12567 | -5/Upper Caves | Attracted the attention of an 0b10 checkpoint 12623 | -5/Upper Caves | Lost 5 parts (1p1n3w) 12633 | -5/Upper Caves | Learned location of Armory (-3) 12643 | -5/Upper Caves | Learned 12 Factory zone layouts 12677 | -5/Upper Caves | Core integrity fell below 20% 12692 | -5/Upper Caves | Discovered new exit (range 7) 12695 | -5/Upper Caves | Entered Warlord 12724 | -5/Warlord | Discovered new exit (range 9) 12740 | -5/Warlord | System corruption cleaned by Quarantine Array 12973 | -5/Warlord | Visited the Vortex Lab 12976 | -5/Warlord | Found Prototype Energy Gun 12976 | -5/Warlord | Identified Vortex Rail 12991 | -5/Warlord | Warlord's base attacked by MAIN.C 12995 | -5/Warlord | Found Prototype Piercing Weapon 12995 | -5/Warlord | Identified Vortex Lance 12998 | -5/Warlord | Found Prototype Launcher 12998 | -5/Warlord | Identified Vortex Catalyst Activator 13173 | -5/Warlord | Build established: Hacker-Mutant 13192 | -5/Warlord | Met Warlord 13341 | -5/Warlord | Warlord forces counterattacked 13523 | -5/Warlord | Spotted Striker 13542 | -5/Warlord | Entered Proximity Caves 13563 | -4/Proximity Caves | Spotted B-86 Titan 13571 | -4/Proximity Caves | Lost 7 allies 13596 | -4/Proximity Caves | Learned 12 Research zone layouts 13617 | -4/Proximity Caves | Attracted the attention of an 0b10 checkpoint 13670 | -4/Proximity Caves | Learned location of Testing (-2) 13777 | -4/Proximity Caves | Build established: Hacker-Sprinter 13791 | -4/Proximity Caves | Destroyed by G-67 Veteran with Field Laser Last Messages --------------- 13756_ Cesium-ion Thruster destroyed. 13756_ Dropped Backup Laser III. 13778_ Vortex penetrates Wall. 13780_ Entropic reaction triggered in Unknown Reactor. 13780_ Destroyed Field Laser. 13780_ G-67 Veteran destroyed. 13784_ Cesium-ion Thruster destroyed. 13784_ Fusion Compressor destroyed. 13786_ Vortex penetrates G-67 Veteran. 13787_ Adv. Signal Interpreter destroyed. 13787_ Vortex Rail destroyed. 13787_ System corrupted by crushing effect (+3). 13787_ System corrupted by crushing effect (+4). 13787_ Knocked back. 13787_ Mak. System Shield destroyed. 13790_ System corrupted: Heat flow error (+216). 13790_ Cesium-ion Thruster destroyed. 13790_ Dropped Med. Storage Unit. 13791_ Cesium-ion Thruster destroyed. Map ----- +----------------------------------------------------+ | ?????????????????????????????????????????????????? | | ?????????????????????????????????????????????????? | | ??????????????????????????##??????????#####??????? | | ???????????????#####?##### #?????????## ##?????? | | ???????????????# ### #????????## #?????? | | ???#######????## ## #???????## ##????? | | ??##" ###### #?# #??###?## ###?## | | ?## ## ### #??## ### ## | | ?#""" ## #### ### | | ????#" ### ## #?#### # | | ????## #?# # #??### # | | ?????# ### ##?# ## #??# ## | | ?????## ### ##??# ### #??## #? | | ??????# #?### ### ##??## ## | | ??????# #### ### ##### #??## # | | ??????## #### #???## #### | | ???????# ## ######;;# | | ???????# #### #; ## ### | | ???????# ##?# ;;# ### | | ???????## ### ##??# #?# ## | | ??????# ##??####??### ##?# #? | | ?????# #???##?# ### ; ##??# # | | ?????# ##?## ### #;;; ! #???# | | ?????## #?## ## % %! ##???## | | ??????## ??# #?# ;;# ## ! #?????## ## | | ???????###?## ##?## @!;###### #???####### | | ???????????# ##??## gg![;#???##[ #??## ##?? | | ???????????# ###### ! ##????# ##??# ##? | | ???????????# ## ### ##???# ##?### ## | | ???????????## ### #???# #?## # | | ????????????# ## #???# ### | | ???????????## b ##???# ## | | ???????????# ###???## # | | ???????????# ## ######?# | | ???????????# #### ## ### ### # | | ???????????##???# #### ## ##### """"" # | | ???????????????# #??# #???## """""""""# | | ??????????????# ##??## ##????# #""""""""" | | ?????????????# ##????##### #?????#[ ##" """ | | ?????????????####??????????### #?????#% ##" """""" | | ??????????????????????????????##?????# #?" """ | | ?????????????????????????????????????# ? | | ?????????????????????????????????????# | | ?????????????????????????????????????############# | | ?????????????????????????????????????????????????? | | ?????????????????????????????????????????????????? | | ?????????????????????????????????????????????????? | | ?????????????????????????????????????????????????? | | ?????????????????????????????????????????????????? | | ?????????????????????????????????????????????????? | +----------------------------------------------------+ Best States ------------- Heat Dissipation 67 Energy Generation 37 Energy Capacity 550 Matter Stores 300 Matter Capacity 300 Sight Range 16 Terrain Scan Density 10 Jamming Range 12 Armor Coverage 225 Evasion (%) 65 Targeting Accuracy 5 Recoil Reduction 2 Offensive Hacking 22 Defensive Hacking 33 Item Schematics ----------------- Mining Claw | -9/Materials | Scanalyzed Hacking Suite | -7/Factory | Scanalyzed Robot Schematics ------------------ None Fabricated ------------ Nothing Repaired ---------- Nothing Studied --------- None Alien Tech Used ----------------- None Achievements -------------- A Powerful Ally? Charge!!! Quantum Hacking Significant Disruption Challenges ------------ None Game ------ Seed ThermalTrapCompressor Manual? 0 Play Time 02:16:47 Cumulative 29.2 hours Start 2026.09.04 @ 01:55:50 End 2026.09.04 @ 18:41:57 Sessions 3 Manual Loads 0 Difficulty Rogue Special Mode None Game No. 34 Rogue 34 Adventurer 0 Explorer 0 Win Type - Total 0 Types 0/0/0/0/0/0/0/0/0/0 Lore% 19 Gallery% 22 Achievement% 20 Wizard Run 0 Options --------- Layout 1 ASCII 0 Keyboard 1 Movement Arrows Keybinds 1 Fullscreen 2 Font 36/Smallcaps Map View 50x40 Zoom Use 0% Tactical HUD 1 Map Filters NONE Filters NONE Steam 1 RUN: 163f9a4d-cc24-432e-918b-3658fee79f5d